fUST/lending_fUST_20250521
["ID","MTS","AMOUNT","RATE_DAILY","PERIOD"]
[361853422,1747841433676,-500.0,0.00018592,2]
[361853425,1747841433686,-234.55815446,0.00018592,2]
[361853426,1747841433696,-500.0,0.00018592,2]
[361853428,1747841433705,-258.24463679,0.00018592,2]
[361853430,1747841433716,-500.0,0.00018592,2]
[361853432,1747841433726,-500.0,0.00018592,2]
[361853434,1747841433736,-500.0,0.00018592,2]
[361853436,1747841433745,-500.0,0.00018592,2]
[361853438,1747841433755,-327.76580098,0.00018683,2]
[361853440,1747841433766,-500.0,0.00018683,2]
[361853442,1747841433776,-500.0,0.00018683,2]
[361853444,1747841433786,-894.64583333,0.00018687,2]
[361853446,1747841433796,-160.0,0.00018687,2]
[361853448,1747841433806,-500.0,0.00018725,2]
[361853450,1747841433816,-3860.28428028,0.00018762,2]
[361853452,1747841433826,-500.0,0.00018767,2]
[361853454,1747841433836,-500.0,0.00018767,2]
[361853456,1747841433846,-500.0,0.00018767,2]
[361853458,1747841433856,-500.50871817,0.00018767,2]
[361853460,1747841433866,-500.55384814,0.00018767,2]
[361853462,1747841433876,-500.0,0.00018887,2]
[361853464,1747841433886,-150.0,0.000189,2]
[361853466,1747841433896,-500.0,0.00018999,2]
[361853468,1747841433906,-3860.28428028,0.00019072,2]
[361853470,1747841433917,-512.88946097,0.00019126,2]
[361853472,1747841433926,-966.87575504,0.00019131,2]
[361853474,1747841433936,-1000.0,0.0001914,2]
[361853476,1747841433946,-1000.0,0.0001914,2]
[361853478,1747841433956,-1000.0,0.0001914,2]
[361853480,1747841433967,-1000.0,0.0001914,2]
[361853482,1747841433978,-1000.85658761,0.0001914,2]
[361853484,1747841433989,-167.74705126,0.0001914,2]
[361853486,1747841433999,-1018.33023863,0.0001914,2]
[361853488,1747841434010,-1000.0,0.0001914,2]
[361853490,1747841434020,-214.464918,0.00019178,2]
[361853492,1747841434030,-500.0,0.00019273,2]
[361853494,1747841434041,-1000.0,0.00019315,2]
[361853496,1747841434051,-706.20125334,0.00019315,2]
[361853498,1747841434060,-1000.0,0.00019315,2]
[361853500,1747841434070,-3860.28428028,0.00019383,2]
[361853502,1747841434080,-500.0,0.00019547,2]
[361853504,1747841434090,-3860.28428028,0.00019693,2]
[361853506,1747841434100,-500.0,0.00019821,2]
[361853508,1747841434110,-216.98411844,0.00019904,2]
[361853510,1747841434120,-512.88946097,0.00019904,2]
[361853512,1747841434130,-222006.360202,0.0002,2]
[361853514,1747841434140,-3860.28428028,0.00020003,2]
[361853516,1747841434150,-514.2612756,0.00020095,2]
[361853518,1747841434160,-587.0,0.00020163,2]
[361853520,1747841434171,-549.0,0.00020163,2]
[361853522,1747841434180,-171.373447,0.00020187,2]
[361853524,1747841434190,-3860.28428028,0.00020314,3]
[361853526,1747841434201,-966.87575502,0.00020329,2]
[361853528,1747841434212,-212.41679935,0.00020614,2]
[361853530,1747841434221,-422.71322487,0.00020618,2]
[361853532,1747841434232,-3860.28428028,0.00020624,3]
[361853534,1747841434242,-200.0,0.00020667,2]
[361853536,1747841434252,-1023.4467377,0.00020696,2]
[361853538,1747841434262,-3860.28428028,0.00020934,4]
[361853539,1747841434272,-165.035,0.00020988,2]
[361853541,1747841434283,-3860.28428028,0.00021245,4]
[361853544,1747841434293,-500.0,0.00021327,2]
[361853546,1747841434305,-250.0,0.00021489,2]
[361853547,1747841434315,-299.76305038,0.00021499,2]
[361853549,1747841434325,-966.87575502,0.00021526,2]
[361853551,1747841434334,-3860.28428028,0.00021555,5]
[361853553,1747841434345,-296.60997948,0.0002165,2]
[361853555,1747841434354,-246.27799531,0.00021852,2]
[361853557,1747841434364,-3860.28428028,0.00021866,6]
[361853559,1747841434374,-368.14669136,0.00021917,2]
[361853561,1747841434385,-215.69280464,0.00021917,2]
[361853563,1747841434395,-430.0,0.00021917,2]
[361853565,1747841434404,-834.68,0.00021917,2]
[361853567,1747841434415,-3145.92,0.00021917,2]
[361853569,1747841434425,-430.0,0.00021917,2]
[361853571,1747841434435,-430.0,0.00021917,2]
[361853573,1747841434445,-614.99,0.00021917,2]
[361853575,1747841434456,-929.56,0.00021917,2]
[361853577,1747841434469,-430.0,0.00021917,2]
[361853579,1747841434480,-443.32,0.00021917,2]
[361853581,1747841434491,-430.0,0.00021917,2]
[361853583,1747841434502,-661.16,0.00021917,2]
[361853585,1747841434512,-189.68840611,0.00021917,2]
[361853587,1747841434523,-430.0,0.00021917,2]
[361853589,1747841434534,-430.0,0.00021917,2]
[361853591,1747841434545,-430.0,0.00021917,2]
[361853593,1747841434555,-430.0,0.00021917,2]
[361853595,1747841434566,-430.0,0.00021917,2]
[361853597,1747841434575,-430.0,0.00021917,2]
[361853599,1747841434586,-430.0,0.00021917,2]
[361853601,1747841434595,-430.0,0.00021917,2]
[361853603,1747841434605,-430.0,0.00021917,2]
[361853605,1747841434616,-151.0,0.00021918,7]
[361853607,1747841434628,-165.0,0.00022,2]
[361853609,1747841434637,-720.0,0.00022024,2]
[361853611,1747841434647,-308.80096751,0.00022037,2]
[361853613,1747841434656,-430.0,0.00022037,2]
[361853615,1747841434666,-430.0,0.00022037,2]
[361853617,1747841434676,-3110.8904144,0.00022062,2]
[361853619,1747841434686,-160.0,0.00022116,2]
[361853621,1747841434696,-1004.48963199,0.00022169,2]
[361853623,1747841434705,-3860.28428028,0.00022176,6]
[361853625,1747841434718,-834.68,0.00022191,2]
[361853627,1747841434729,-3145.92,0.00022191,2]
[361853629,1747841434739,-929.56,0.00022191,2]
[361853631,1747841434748,-520.02150175,0.00022191,2]
[361853787,1747841444317,-484.33725176,0.00019071,2]
[361853788,1747841444327,-500.0,0.00019071,2]
[361853789,1747841444337,-500.0,0.00019071,2]
[361853790,1747841444346,-500.0,0.00019071,2]
[361853791,1747841444357,-200.23932175,0.00019071,2]
[361853792,1747841444367,-500.0,0.00021918,2]
[361853793,1747841444376,-651.38978803,0.00021918,2]
[361853794,1747841444387,-500.0,0.00021918,2]
[361853795,1747841444396,-500.0,0.00021918,2]
[361853796,1747841444406,-500.0,0.00021918,2]
[361853797,1747841444415,-500.0,0.00021918,2]
[361853798,1747841444425,-141.13849825,0.00022191,2]
[361853799,1747841444434,-430.0,0.00022191,2]
[361853800,1747841444444,-430.0,0.00022191,2]
[361853801,1747841444454,-430.0,0.00022191,2]
[361853802,1747841444463,-430.0,0.00022191,2]
[361853803,1747841444475,-165.0,0.00022192,7]
[361853804,1747841444485,-447.09911464,0.00022324,2]
[361853805,1747841444495,-493.05873648,0.00022324,2]
[361853806,1747841444505,-834.68,0.00022465,2]
[361853807,1747841444514,-3145.92,0.00022465,2]
[361853808,1747841444525,-151.0,0.00022465,7]
[361853809,1747841444534,-151.0,0.00022465,7]
[361853810,1747841444543,-929.56,0.00022465,2]
[361853811,1747841444554,-661.16,0.00022465,2]
[361853812,1747841444563,-430.0,0.00022465,2]
[361853813,1747841444573,-430.0,0.00022465,2]
[361853814,1747841444582,-430.0,0.00022465,2]
[361853815,1747841444591,-430.0,0.00022465,2]
[361853816,1747841444601,-151.0,0.00022486,7]
[361853817,1747841444611,-151.0,0.00022486,7]
[361853818,1747841444620,-151.0,0.00022486,7]
[361853819,1747841444778,-151.0,0.00022486,7]
[361853820,1747841444788,-3860.28428028,0.00022486,7]
[361853821,1747841444798,-488.957763,0.0002254,2]
[361853822,1747841444810,-500.0,0.00022587,2]
[361853823,1747841444819,-151.0,0.00022614,7]
[361853824,1747841444829,-500.4602455,0.00022636,2]
[361853825,1747841444838,-151.0,0.00022682,7]
[361853826,1747841444847,-600.0,0.00022683,2]
[361853827,1747841444857,-501.92835532,0.00022683,2]
[361853828,1747841444867,-500.0,0.00022683,2]
[361853829,1747841444876,-83.02459499,0.00022683,2]
[361853830,1747841444889,-416.97540501,0.00022683,2]
[361853831,1747841444899,-966.87575502,0.00022724,2]
[361853832,1747841444910,-834.68,0.00022739,2]
[361853833,1747841444919,-151.0,0.00022739,7]
[361853834,1747841444929,-3145.92,0.00022739,2]
[361853835,1747841444938,-151.0,0.00022739,7]
[361853836,1747841444948,-195.209824,0.00022739,7]
[361853837,1747841444958,-929.56,0.00022739,2]
[361853838,1747841444968,-661.16,0.00022739,2]
[361853839,1747841444978,-430.0,0.00022739,2]
[361853840,1747841444988,-430.0,0.00022739,2]
[361853841,1747841444997,-430.0,0.00022739,2]
[361853842,1747841445007,-697.98,0.00022749,2]
[361853843,1747841445016,-160.0,0.00022749,2]
[361853844,1747841445026,-501.23380576,0.0002275,2]
[361853845,1747841445036,-500.0,0.0002275,2]
[361853846,1747841445046,-151.0,0.00022796,7]
[361853847,1747841445055,-3860.28428028,0.00022797,7]
[361853848,1747841445065,-151.0,0.00022999,7]
[361853849,1747841445075,-151.0,0.00023,2]
[361853850,1747841445084,-1157.89,0.00023,2]
[361853851,1747841445094,-500.0,0.00023,30]
[361853852,1747841445103,-500.0,0.00023,30]
[361853853,1747841445112,-500.0,0.00023,30]
[361853854,1747841445122,-500.0,0.00023,30]
[361853855,1747841445131,-500.0,0.00023,30]
[361853856,1747841445142,-500.0,0.00023,30]
[361853857,1747841445151,-500.0,0.00023,30]
[361853858,1747841445161,-500.0,0.00023,30]
[361853859,1747841445171,-500.0,0.00023,30]
[361853860,1747841445180,-500.0,0.00023,30]
[361853861,1747841445191,-500.0,0.00023,30]
[361853862,1747841445200,-500.0,0.00023,30]
[361853863,1747841445209,-500.0,0.00023,30]
[361853864,1747841445221,-500.0,0.00023,30]
[361853865,1747841445230,-500.0,0.00023,30]
[361853866,1747841445240,-700.0,0.00023,30]
[361853867,1747841445249,-151.0,0.00023,7]
[361853868,1747841445260,-3579.0,0.00023,7]
[361853869,1747841445269,-834.68,0.00023013,2]
[361853870,1747841445279,-3145.92,0.00023013,2]
[361853871,1747841445289,-929.56,0.00023013,2]
[361853872,1747841445299,-661.16,0.00023013,2]
[361853873,1747841445309,-430.0,0.00023013,2]
[361853874,1747841445319,-411.23,0.00023013,2]
[361853875,1747841445328,-430.0,0.00023013,2]
[361853876,1747841445338,-165.0,0.00023014,7]
[361853877,1747841445348,-151.0,0.00023026,7]
[361853878,1747841445357,-151.0,0.00023054,7]
[361853879,1747841445368,-151.0,0.00023081,7]
[361853880,1747841445378,-3860.28428028,0.00023107,8]
[361853881,1747841445389,-212.40632534,0.00023109,7]
[361853882,1747841445399,-301.139136,0.00023136,7]
[361853883,1747841445408,-151.0,0.00023136,7]
[361853884,1747841445418,-207.4,0.00023217,2]
[361853885,1747841445429,-151.0,0.00023217,2]
[361853886,1747841445438,-1200.0,0.00023231,2]
[361853887,1747841445448,-1000.0,0.00023231,2]
[361853888,1747841445458,-834.68,0.00023287,2]
[361853890,1747841445467,-151.0,0.00023287,7]
[361853892,1747841445481,-3145.92,0.00023287,2]
[361853894,1747841445491,-929.56,0.00023287,2]
[361853896,1747841445501,-661.16,0.00023287,2]
[361853898,1747841445510,-430.0,0.00023287,2]
[361853900,1747841445520,-9245.07,0.00023287,2]
[361853902,1747841445529,-430.0,0.00023287,2]
[361853904,1747841445539,-697.98,0.00023297,2]
[361853906,1747841445548,-151.0,0.000233,6]
[361853908,1747841445558,-3860.28428028,0.00023417,9]
[361853910,1747841445568,-500.0,0.00023519,2]
[361853912,1747841445578,-154.22928254,0.00023534,2]
[361853914,1747841445588,-230.075229,0.00023561,7]
[361853917,1747841445598,-834.68,0.00023561,2]
[361853919,1747841445607,-3145.92,0.00023561,2]
[361853922,1747841445617,-929.56,0.00023561,2]
[361853925,1747841445626,-661.16,0.00023561,2]
[361853928,1747841445635,-430.0,0.00023561,2]
[361853930,1747841445646,-430.0,0.00023561,2]
[361853933,1747841445655,-2477.605,0.00023661,2]
[361853935,1747841445665,-3860.28428028,0.00023728,9]
[361853937,1747841445675,-1185.50935466,0.00023759,2]
[361853939,1747841445684,-1800.0,0.00023779,2]
[361853941,1747841445694,-1098.41230358,0.00023779,2]
[361853943,1747841445704,-834.68,0.00023835,2]
[361853945,1747841445714,-3145.92,0.00023835,2]
[361853946,1747841445726,-929.56,0.00023835,2]
[361853947,1747841445736,-661.16,0.00023835,2]
[361853948,1747841445746,-430.0,0.00023835,2]
[361853949,1747841445755,-430.0,0.00023835,2]
[361853950,1747841445765,-697.98,0.00023845,2]
[361853951,1747841445775,-150.0,0.000239,2]
[361853952,1747841445784,-1481.89001658,0.000239,2]
[361853954,1747841445795,-966.87575502,0.00023921,2]
[361853956,1747841445805,-200.0,0.00023939,2]
[361853958,1747841445815,-200.0,0.00023999,30]
[361853960,1747841445824,-3892.07861395,0.00024,2]
[361853962,1747841445834,-11840.69664442,0.00024,3]
[361853964,1747841445844,-1028.0,0.00024,2]
[361853966,1747841445854,-113527.20913954,0.00024,21]
[361853968,1747841445864,-1000.0,0.00024,24]
[361853970,1747841445874,-13868.0,0.00024,5]
[361853972,1747841445884,-151.0,0.00024,7]
[361853974,1747841445893,-422.71322487,0.00024,7]
[361853976,1747841445903,-160.0,0.00024,7]
[361853978,1747841445913,-7205.37200749,0.00024006,2]
[361853980,1747841445923,-5000.0,0.00024006,2]
[361853982,1747841445934,-5000.0,0.00024006,2]
[361853984,1747841445944,-5000.0,0.00024006,2]
[361853985,1747841445954,-5000.0,0.00024006,2]
[361853986,1747841445963,-118920.90971182,0.00024021,2]
[361853987,1747841445975,-151.0,0.00024021,7]
[361853988,1747841445985,-3860.28428028,0.00024038,10]
[361853990,1747841445995,-834.68,0.00024109,2]
[361853992,1747841446006,-3145.92,0.00024109,2]
[361853994,1747841446016,-929.56,0.00024109,2]
[361853995,1747841446026,-661.16,0.00024109,2]
[361853996,1747841446036,-430.0,0.00024109,2]
[361853997,1747841446046,-430.0,0.00024109,2]
[361853998,1747841446056,-500.0,0.00024163,120]
[361853999,1747841446065,-575.15,0.00024163,120]
[361854000,1747841446075,-170.0,0.00024164,7]
[361854001,1747841446085,-1100.2125253,0.000242,30]
[361854002,1747841446095,-199943.56400789,0.00024264,5]
[361854003,1747841446104,-151.0,0.00024264,7]
[361854004,1747841446113,-200.0,0.00024273,30]
[361854005,1747841446123,-422.71322487,0.000243,3]
[361854006,1747841446132,-160.0,0.000243,3]
[361854007,1747841446141,-2400.0,0.00024327,2]
[361854008,1747841446150,-45029.69,0.00024342,8]
[361854009,1747841446160,-30327.51,0.00024342,8]
[361854010,1747841446169,-3860.28428028,0.00024348,11]
[361854011,1747841446178,-834.68,0.00024383,2]
[361854012,1747841446187,-3145.92,0.00024383,2]
[361854013,1747841446197,-929.56,0.00024383,2]
[361854014,1747841446207,-661.16,0.00024383,2]
[361854015,1747841446216,-430.0,0.00024383,2]
[361854016,1747841446227,-430.0,0.00024383,2]
[361854017,1747841446236,-697.98,0.00024393,2]
[361854018,1747841446246,-154.138516,0.000245,14]
[361854019,1747841446255,-26386.1661531,0.000245,2]
[361854020,1747841446264,-151.0,0.000245,7]
[361854021,1747841446274,-200.0,0.00024547,30]
[361854022,1747841446284,-215.0738,0.00024586,2]
[361854023,1747841446293,-151.0,0.00024586,2]
[361854024,1747841446303,-166.30644302,0.000246,2]
[361854025,1747841446315,-8789.49131773,0.000246,2]
[361854026,1747841446324,-430.0,0.00024657,2]
[361854027,1747841446333,-430.0,0.00024657,2]
[361854028,1747841446343,-430.0,0.00024657,2]
[361854029,1747841446354,-430.0,0.00024657,2]
[361854030,1747841446364,-430.0,0.00024657,2]
[361854031,1747841446373,-430.0,0.00024657,2]
[361854032,1747841446382,-344.80725714,0.00024657,2]
[361854033,1747841446391,-834.68,0.00024657,2]
[361854034,1747841446401,-3145.92,0.00024657,2]
[361854035,1747841446410,-929.56,0.00024657,2]
[361854036,1747841446419,-661.16,0.00024657,2]
[361854037,1747841446428,-430.0,0.00024657,2]
[361854038,1747841446438,-194.37,0.00024657,2]
[361854039,1747841446446,-150.0,0.00024658,2]
[361854040,1747841446456,-1000.0,0.00024658,2]
[361854041,1747841446465,-275.92802864,0.00024658,2]
[361854042,1747841446478,-3860.28428028,0.00024659,11]
[361854043,1747841446488,-160.0,0.00024659,2]
[361854044,1747841446497,-59087.51398519,0.0002466,7]
[361854045,1747841446508,-59087.51398519,0.0002466,7]
[361854046,1747841446518,-151.0,0.0002466,7]
[361854047,1747841446527,-151.0,0.0002466,7]
[361854048,1747841446537,-160.40205525,0.00024699,2]
[361854049,1747841446546,-23093.75,0.000247,2]
[361854050,1747841446556,-6644.76,0.000247,7]
[361854051,1747841446565,-133695.59,0.000247,2]
[361854052,1747841446574,-2000.0,0.000247,7]
[361854053,1747841446584,-9245.96,0.000247,7]
[361854054,1747841446593,-514209.21,0.000247,7]
[361854055,1747841446603,-151.0,0.000247,7]
[361854056,1747841446612,-151.0,0.000247,7]
[361854057,1747841446622,-1000.0,0.000247,5]
[361854058,1747841446631,-500.0,0.000247,9]
[361854059,1747841446641,-8789.49131765,0.00024701,2]
[361854060,1747841446650,-1481.89001656,0.00024703,2]
[361854061,1747841446659,-544.377557,0.00024705,2]
[361854062,1747841446668,-153.0,0.00024767,2]
[361854063,1747841446677,-158.0682864,0.00024767,2]
[361854064,1747841446686,-153.0,0.00024767,2]
[361854065,1747841446695,-153.0,0.00024767,2]
[361854066,1747841446704,-153.0,0.00024767,2]
[361854067,1747841446714,-153.0,0.00024767,2]
[361854068,1747841446724,-209.7788329,0.00024767,2]
[361854069,1747841446733,-2000.0,0.000248,2]
[361854070,1747841446742,-150.0,0.000248,2]
[361854071,1747841446751,-40501.5269112,0.000248,2]
[361854072,1747841446761,-8789.49131765,0.00024801,2]
[361854073,1747841446770,-3000.0,0.00024875,2]
[361854074,1747841446779,-181.344952,0.00024877,7]
[361854075,1747841446788,-51366.840895,0.000249,2]
[361854076,1747841446798,-8789.49131765,0.00024902,2]
[361854077,1747841446807,-834.68,0.00024931,2]
[361854078,1747841446816,-3145.92,0.00024931,2]
[361854079,1747841446825,-929.56,0.00024931,2]
[361854080,1747841446835,-661.16,0.00024931,2]
[361854081,1747841446845,-430.0,0.00024931,2]
[361854082,1747841446854,-697.98,0.00024941,30]
[361854083,1747841446863,-3860.28428028,0.00024969,12]
[361854084,1747841446873,-1107.037771,0.0002498,5]
[361854085,1747841446883,-3337.50417267,0.00025,30]
[361854086,1747841446892,-202.0,0.00025,120]
[361854087,1747841446901,-72717.4811,0.00025,2]
[361854088,1747841446910,-2634.83645123,0.00025,30]
[361854089,1747841446919,-98463.24770996,0.00025,15]
[361854090,1747841446928,-19165.90505702,0.00025,2]
[361854091,1747841446938,-370.25615013,0.00025,20]
[361854092,1747841446947,-2017.63038572,0.00025,14]
[361854093,1747841446957,-100000.0,0.00025,30]
[361854094,1747841446967,-13715.82726501,0.00025,2]
[361854095,1747841446979,-1059.46298587,0.00025,2]
[361854096,1747841446988,-217.51768491,0.00025,120]
[361854097,1747841446999,-2609.06383837,0.00025,2]
[361854098,1747841447008,-206.96796088,0.00025,2]
[361854099,1747841447018,-10364.0,0.00025,2]
[361854100,1747841447027,-89808.91518271,0.00025,30]
[361854101,1747841447037,-520.9844846,0.00025,120]
[361854102,1747841447046,-1001.59542428,0.00025,14]
[361854103,1747841447055,-500.0,0.00025,2]
[361854104,1747841447065,-1152.88918849,0.00025,120]
[361854105,1747841447075,-150.0,0.00025,3]
[361854106,1747841447085,-499.79458827,0.00025,120]
[361854107,1747841447094,-676.71192505,0.00025,2]
[361854108,1747841447104,-160.57354554,0.00025,7]
[361854109,1747841447114,-120000.0,0.00025,2]
[361854110,1747841447123,-462343.19929554,0.00025,20]
[361854111,1747841447133,-8040.0,0.00025,100]
[361854112,1747841447143,-1000.0,0.00025,5]
[361854113,1747841447153,-5000.0,0.00025,30]
[361854114,1747841447162,-5000.0,0.00025,30]
[361854115,1747841447172,-5000.0,0.00025,30]
[361854116,1747841447182,-5000.0,0.00025,30]
[361854117,1747841447192,-5000.0,0.00025,30]
[361854118,1747841447202,-5000.0,0.00025,30]
[361854119,1747841447212,-5000.0,0.00025,30]
[361854120,1747841447224,-5000.0,0.00025,30]
[361854121,1747841447235,-5000.0,0.00025,30]
[361854122,1747841447245,-5000.0,0.00025,30]
[361854123,1747841447255,-5000.0,0.00025,30]
[361854124,1747841447266,-5000.0,0.00025,30]
[361854125,1747841447277,-5000.0,0.00025,30]
[361854126,1747841447287,-5000.0,0.00025,30]
[361854127,1747841447298,-5000.0,0.00025,30]
[361854128,1747841447309,-5000.0,0.00025,30]
[361854129,1747841447319,-5000.0,0.00025,30]
[361854130,1747841447330,-5000.0,0.00025,30]
[361854131,1747841447341,-5000.0,0.00025,30]
[361854132,1747841447351,-5000.0,0.00025,30]
[361854133,1747841447361,-5000.0,0.00025,30]
[361854134,1747841447371,-5000.0,0.00025,30]
[361854135,1747841447381,-1011.22,0.00025,30]
[361854136,1747841447391,-314.5140147,0.00025,30]
[361854137,1747841447401,-202.640228,0.00025,2]
[361854138,1747841447410,-422.71322487,0.00025,30]
[361854139,1747841447419,-160.0,0.00025,30]
[361854140,1747841447429,-8789.49131765,0.00025003,2]
[361854141,1747841447438,-1218.28,0.000251,31]
[361854142,1747841447447,-1218.28,0.000251,31]
[361854143,1747841447457,-1218.28,0.000251,31]
[361854144,1747841447467,-1218.28,0.000251,31]
[361854145,1747841447480,-1218.28,0.000251,31]
[361854146,1747841447490,-1218.28,0.000251,31]
[361854147,1747841447499,-1218.28,0.000251,31]
[361854148,1747841447508,-1218.28,0.000251,31]
[361854149,1747841447518,-1218.28,0.000251,31]
[361854150,1747841447528,-1218.28,0.000251,31]
[361854151,1747841447537,-1218.28,0.000251,31]
[361854152,1747841447547,-1218.28,0.000251,31]
[361854153,1747841447668,-1218.28,0.000251,31]
[361854154,1747841447679,-1218.28,0.000251,31]
[361854155,1747841447688,-1218.28,0.000251,31]
[361854156,1747841447698,-1218.28,0.000251,31]
[361854157,1747841447708,-8789.49131765,0.00025103,2]
[361854158,1747841447718,-160.0,0.00025115,3]
[361854159,1747841447729,-160.0,0.00025115,5]
[361854160,1747841447739,-156.685007,0.00025124,30]
[361854161,1747841447748,-173616.54619792,0.00025163,20]
[361854162,1747841447758,-500.0,0.00025163,20]
[361854163,1747841447767,-500.0,0.00025163,20]
[361854164,1747841447776,-500.0,0.00025163,20]
[361854165,1747841447786,-500.0,0.00025163,20]
[361854166,1747841447796,-500.0,0.00025163,20]
[361854167,1747841447805,-500.0,0.00025163,20]
[361854168,1747841447814,-500.0,0.00025163,20]
[361854169,1747841447825,-500.0,0.00025163,20]
[361854170,1747841447834,-500.0,0.00025163,20]
[361854171,1747841447843,-500.0,0.00025163,20]
[361854172,1747841447853,-500.0,0.00025163,20]
[361854173,1747841447862,-500.0,0.00025163,20]
[361854174,1747841447872,-500.0,0.00025163,20]
[361854175,1747841447882,-500.0,0.00025163,20]
[361854176,1747841447891,-500.0,0.00025163,20]
[361854177,1747841447900,-500.0,0.00025163,20]
[361854178,1747841447910,-500.0,0.00025163,20]
[361854179,1747841447920,-500.0,0.00025163,20]
[361854180,1747841447931,-500.0,0.00025163,20]
[361854181,1747841447940,-513.1260549,0.00025163,20]
[361854182,1747841447949,-8789.49131765,0.00025204,2]
[361854183,1747841447959,-834.68,0.00025205,2]
[361854184,1747841447968,-3145.92,0.00025205,2]
[361854185,1747841447979,-929.56,0.00025205,2]
[361854186,1747841447990,-661.16,0.00025205,2]
[361854187,1747841447999,-430.0,0.00025205,2]
[361854188,1747841448009,-550.0,0.00025239,30]
[361854189,1747841448019,-200.0,0.00025267,120]
[361854190,1747841448029,-3860.28428028,0.00025279,12]
[361854191,1747841448039,-200.0,0.00025283,120]
[361854192,1747841448049,-2194.0,0.0002529,30]
[361854193,1747841448059,-619.79,0.00025298,2]
[361854194,1747841448070,-8789.49131765,0.00025305,2]
[361854195,1747841448080,-200.0,0.00025319,2]
[361854196,1747841448090,-200.0,0.00025362,120]
[361854197,1747841448101,-200.0,0.00025374,120]
[361854198,1747841448111,-5000.0,0.00025377,30]
[361854199,1747841448121,-5000.0,0.00025377,30]
[361854200,1747841448131,-156.685007,0.000254,3]
[361854201,1747841448141,-8789.49131765,0.00025405,2]
[361854202,1747841448151,-3600.0,0.00025423,2]
[361854203,1747841448162,-200.0,0.00025455,120]
[361854204,1747841448172,-900.0,0.00025469,3]
[361854205,1747841448182,-834.68,0.00025479,2]
[361854206,1747841448192,-3145.92,0.00025479,2]
[361854207,1747841448202,-929.56,0.00025479,2]
[361854208,1747841448213,-661.16,0.00025479,2]
[361854209,1747841448224,-430.0,0.00025479,2]
[361854210,1747841448235,-697.98,0.00025489,30]
[361854211,1747841448245,-619.79,0.00025498,7]
[361854212,1747841448255,-16013.96134452,0.000255,7]
[361854213,1747841448265,-1000.0,0.000255,2]
[361854214,1747841448275,-514209.21,0.000255,7]
[361854215,1747841448285,-1218.28,0.000255,31]
[361854216,1747841448295,-1218.28,0.000255,31]
[361854217,1747841448308,-1218.28,0.000255,31]
[361854218,1747841448318,-1218.28,0.000255,31]
[361854219,1747841448328,-1218.28,0.000255,31]
[361854220,1747841448339,-1218.28,0.000255,31]
[361854221,1747841448348,-1218.28,0.000255,31]
[361854222,1747841448358,-1218.28,0.000255,31]
[361854223,1747841448368,-1218.28,0.000255,31]
[361854224,1747841448381,-1218.28,0.000255,31]
[361854225,1747841448396,-1218.28,0.000255,31]
[361854226,1747841448406,-1218.28,0.000255,31]
[361854227,1747841448416,-1218.28,0.000255,31]
[361854228,1747841448427,-1218.28,0.000255,31]
[361854229,1747841448437,-1218.28,0.000255,31]
[361854230,1747841448447,-1218.28,0.000255,31]